[Event "Titled Tuesday Blitz June 21 Early 2022"]
[White "Dhanush, Bharadwaj"]
[Black "Gormally, Daniel W"]
[WhiteFideId "25058746"]
[BlackFideId "406465"]
[WhiteElo "2291"]
[BlackElo "2543"]
[Result "1/2-1/2"]
[Round "11"]
[TimeControl "180+1"]
[Date "2022.06.21"]
[WhiteClock "0:00:46"]
[BlackClock "0:01:08"]

1. Nf3 {[%clk 0:03:00]}  d5 {[%clk 0:03:00]} 2. c4 {[%clk 0:02:52]}  c6 {[%clk 0:03:00]} 3. b3 {[%clk 0:02:50]}  Bg4 {[%clk 0:03:00]} 4. e3 {[%clk 0:02:46]}  Nd7 {[%clk 0:03:00]} 5. Be2 {[%clk 0:02:47]}  Ngf6 {[%clk 0:03:00]} 6. Bb2 {[%clk 0:02:47]}  e6 {[%clk 0:03:00]} 7. O-O {[%clk 0:02:47]}  Bd6 {[%clk 0:03:00]} 8. h3 {[%clk 0:02:47]}  Bh5 {[%clk 0:02:59]} 9. d4 {[%clk 0:02:47]}  O-O {[%clk 0:02:59]} 10. Nbd2 {[%clk 0:02:47]}  Qe7 {[%clk 0:02:58]} 11. Rc1 {[%clk 0:02:44]}  Ba3 {[%clk 0:02:57]} 12. Bxa3 {[%clk 0:02:25]}  Qxa3 {[%clk 0:02:56]} 13. Qc2 {[%clk 0:02:22]}  a5 {[%clk 0:02:55]} 14. Nb1 {[%clk 0:02:18]}  Qe7 {[%clk 0:02:54]} 15. Nc3 {[%clk 0:02:17]}  Bxf3 {[%clk 0:02:49]} 16. Bxf3 {[%clk 0:02:18]}  dxc4 {[%clk 0:02:50]} 17. bxc4 {[%clk 0:02:18]}  e5 {[%clk 0:02:50]} 18. d5 {[%clk 0:02:17]}  cxd5 {[%clk 0:02:31]} 19. Nxd5 {[%clk 0:02:14]}  Nxd5 {[%clk 0:02:32]} 20. Bxd5 {[%clk 0:02:11]}  Nf6 {[%clk 0:02:32]} 21. Qb2 {[%clk 0:01:56]}  Rab8 {[%clk 0:02:17]} 22. e4 {[%clk 0:01:55]}  b6 {[%clk 0:02:16]} 23. Rfd1 {[%clk 0:01:51]}  Nd7 {[%clk 0:02:15]} 24. Qb5 {[%clk 0:01:43]}  Nc5 {[%clk 0:02:15]} 25. Rc2 {[%clk 0:01:43]}  g6 {[%clk 0:02:15]} 26. Rcd2 {[%clk 0:01:42]}  Kg7 {[%clk 0:02:15]} 27. Qc6 {[%clk 0:01:39]}  f5 {[%clk 0:02:06]} 28. exf5 {[%clk 0:01:35]}  gxf5 {[%clk 0:02:07]} 29. Bf3 {[%clk 0:01:30]}  Rb7 {[%clk 0:01:31]} 30. Qxb7 {[%clk 0:01:18]}  Nxb7 {[%clk 0:01:12]} 31. Rd7 {[%clk 0:01:18]}  Rf7 {[%clk 0:01:13]} 32. Rxe7 {[%clk 0:01:10]}  Rxe7 {[%clk 0:01:14]} 33. Bxb7 {[%clk 0:01:11]}  Rxb7 {[%clk 0:01:14]} 34. Rb1 {[%clk 0:01:12]}  Rc7 {[%clk 0:01:10]} 35. Rxb6 {[%clk 0:00:47]}  Rxc4 {[%clk 0:01:10]} 36. Rb5 {[%clk 0:00:47]}  Rc1+ {[%clk 0:01:08]} 37. Kh2 {[%clk 0:00:47]}  Rc2 {[%clk 0:01:08]} 38. Rxa5 {[%clk 0:00:47]}  Rxf2 {[%clk 0:01:08]} 39. Rxe5 {[%clk 0:00:46]}  Rxa2 {[%clk 0:01:07]} 40. Rxf5 {[%clk 0:00:47]}  Kg6 {[%clk 0:01:08]} 41. Rf3 {[%clk 0:00:47]}  h5 {[%clk 0:01:07]} 42. Re3 {[%clk 0:00:47]}  Ra4 {[%clk 0:01:08]} 43. Rd3 {[%clk 0:00:47]}  Kg5 {[%clk 0:01:08]} 44. Rg3+ {[%clk 0:00:47]}  Kh6 {[%clk 0:01:08]} 45. Rf3 {[%clk 0:00:46]}  Kg5 {[%clk 0:01:08]} 1/2-1/2


[Site "https://www.chess.com"]

[Event "Titled Tuesday Blitz June 21 Early 2022"]
[White "Garcia Cuenca, Victor"]
[Black "Pham, Le Thao Nguyen"]
[WhiteFideId "2250829"]
[BlackFideId "12401226"]
[WhiteElo "2317"]
[BlackElo "2282"]
[Result "1/2-1/2"]
[Round "11"]
[TimeControl "180+1"]
[Date "2022.06.22"]
[WhiteClock "0:00:17"]
[BlackClock "0:00:09"]

1. d4 {[%clk 0:03:00]}  d5 {[%clk 0:02:57]} 2. Nf3 {[%clk 0:03:01]}  Nf6 {[%clk 0:02:54]} 3. e3 {[%clk 0:03:01]}  Bg4 {[%clk 0:02:52]} 4. c4 {[%clk 0:03:01]}  c6 {[%clk 0:02:49]} 5. Nc3 {[%clk 0:03:01]}  e6 {[%clk 0:02:45]} 6. h3 {[%clk 0:02:59]}  Bh5 {[%clk 0:02:44]} 7. g4 {[%clk 0:02:57]}  Bg6 {[%clk 0:02:44]} 8. Ne5 {[%clk 0:02:58]}  Nbd7 {[%clk 0:02:45]} 9. Nxg6 {[%clk 0:02:57]}  hxg6 {[%clk 0:02:44]} 10. Qf3 {[%clk 0:02:40]}  Bb4 {[%clk 0:02:41]} 11. Bd2 {[%clk 0:02:39]}  a5 {[%clk 0:02:15]} 12. a3 {[%clk 0:02:36]}  Bd6 {[%clk 0:02:14]} 13. g5 {[%clk 0:02:22]}  Ng8 {[%clk 0:02:05]} 14. e4 {[%clk 0:02:22]}  dxc4 {[%clk 0:01:50]} 15. Bxc4 {[%clk 0:02:19]}  Ne7 {[%clk 0:01:48]} 16. h4 {[%clk 0:02:13]}  b5 {[%clk 0:01:37]} 17. Bb3 {[%clk 0:02:09]}  b4 {[%clk 0:01:19]} 18. axb4 {[%clk 0:02:04]}  axb4 {[%clk 0:01:18]} 19. Rxa8 {[%clk 0:02:04]}  Qxa8 {[%clk 0:01:19]} 20. Na4 {[%clk 0:02:02]}  c5 {[%clk 0:01:16]} 21. dxc5 {[%clk 0:01:54]}  Nxc5 {[%clk 0:01:03]} 22. Nxc5 {[%clk 0:01:50]}  Bxc5 {[%clk 0:01:04]} 23. h5 {[%clk 0:01:26]}  gxh5 {[%clk 0:00:46]} 24. Rxh5 {[%clk 0:01:27]}  Rxh5 {[%clk 0:00:45]} 25. Qxh5 {[%clk 0:01:25]}  Qxe4+ {[%clk 0:00:45]} 26. Kd1 {[%clk 0:01:04]}  Qb1+ {[%clk 0:00:35]} 27. Ke2 {[%clk 0:01:00]}  Nf5 {[%clk 0:00:19]} 28. Ba4+ {[%clk 0:00:49]}  Ke7 {[%clk 0:00:19]} 29. Qh8 {[%clk 0:00:24]}  Qe4+ {[%clk 0:00:15]} 30. Kd1 {[%clk 0:00:23]}  Qb1+ {[%clk 0:00:15]} 31. Bc1 {[%clk 0:00:20]}  Qd3+ {[%clk 0:00:14]} 32. Bd2 {[%clk 0:00:21]}  Qf1+ {[%clk 0:00:13]} 33. Be1 {[%clk 0:00:19]}  Qd3+ {[%clk 0:00:13]} 34. Bd2 {[%clk 0:00:20]}  Nd6 {[%clk 0:00:12]} 35. Qb8 {[%clk 0:00:18]}  Qb1+ {[%clk 0:00:10]} 36. Bc1 {[%clk 0:00:17]}  Qd3+ {[%clk 0:00:10]} 37. Bd2 {[%clk 0:00:17]}  Qf1+ {[%clk 0:00:09]} 38. Be1 {[%clk 0:00:17]}  Qd3+ {[%clk 0:00:09]} 39. Bd2 {[%clk 0:00:17]} 1/2-1/2


[Site "https://www.chess.com"]

[Event "Titled Tuesday Blitz June 21 Early 2022"]
[White "Hoffmann, Asa"]
[Black "Vifleemskaia, Svetlana"]
[WhiteFideId "2001470"]
[BlackFideId "4129490"]
[WhiteElo "2117"]
[BlackElo "1929"]
[Result "1-0"]
[Round "11"]
[TimeControl "180+1"]
[Date "2022.06.22"]
[WhiteClock "0:02:05"]
[BlackClock "0:00:59"]

1. d4 {[%clk 0:02:54]}  Nf6 {[%clk 0:02:57]} 2. Bg5 {[%clk 0:02:50]}  Ne4 {[%clk 0:02:56]} 3. Bf4 {[%clk 0:02:49]}  d5 {[%clk 0:02:54]} 4. f3 {[%clk 0:02:49]}  Nf6 {[%clk 0:02:54]} 5. e4 {[%clk 0:02:49]}  dxe4 {[%clk 0:02:39]} 6. Nc3 {[%clk 0:02:48]}  c5 {[%clk 0:02:37]} 7. dxc5 {[%clk 0:02:41]}  Qxd1+ {[%clk 0:02:35]} 8. Rxd1 {[%clk 0:02:40]}  a6 {[%clk 0:02:28]} 9. fxe4 {[%clk 0:02:40]}  Nc6 {[%clk 0:02:27]} 10. e5 {[%clk 0:02:39]}  Ng4 {[%clk 0:02:22]} 11. Nd5 {[%clk 0:02:37]}  f6 {[%clk 0:01:30]} 12. Nc7+ {[%clk 0:02:30]}  Kf7 {[%clk 0:01:30]} 13. Bc4+ {[%clk 0:02:29]}  e6 {[%clk 0:01:30]} 14. Nxa8 {[%clk 0:02:24]}  fxe5 {[%clk 0:01:29]} 15. Bc1 {[%clk 0:02:20]}  Bxc5 {[%clk 0:01:25]} 16. Nf3 {[%clk 0:02:20]}  Nf2 {[%clk 0:01:22]} 17. Rf1 {[%clk 0:02:18]}  Nxd1 {[%clk 0:01:21]} 18. Nxe5+ {[%clk 0:02:15]}  Ke7 {[%clk 0:01:11]} 19. Bg5+ {[%clk 0:02:10]}  Ke8 {[%clk 0:00:59]} 20. Nc7# {[%clk 0:02:05]} 1-0


[Site "https://www.chess.com"]

[Event "Titled Tuesday Blitz June 21 Early 2022"]
[White "Jobava, Baadur"]
[Black "Zhigalko, Sergei"]
[WhiteFideId "13601520"]
[BlackFideId "13502956"]
[WhiteElo "2617"]
[BlackElo "2662"]
[Result "1-0"]
[Round "11"]
[TimeControl "180+1"]
[Date "2022.06.21"]
[WhiteClock "0:00:24"]
[BlackClock "0:00:02"]

1. b3 {[%clk 0:02:51]}  e5 {[%clk 0:02:58]} 2. Bb2 {[%clk 0:02:51]}  d6 {[%clk 0:02:59]} 3. g3 {[%clk 0:02:49]}  Nf6 {[%clk 0:02:59]} 4. Bg2 {[%clk 0:02:49]}  Be7 {[%clk 0:02:58]} 5. c4 {[%clk 0:02:49]}  O-O {[%clk 0:02:58]} 6. Nc3 {[%clk 0:02:50]}  c6 {[%clk 0:02:57]} 7. e4 {[%clk 0:02:49]}  a5 {[%clk 0:02:53]} 8. Nge2 {[%clk 0:02:48]}  Na6 {[%clk 0:02:54]} 9. d4 {[%clk 0:02:48]}  exd4 {[%clk 0:02:48]} 10. Nxd4 {[%clk 0:02:49]}  Nc5 {[%clk 0:02:49]} 11. O-O {[%clk 0:02:48]}  Re8 {[%clk 0:02:47]} 12. Qc2 {[%clk 0:02:46]}  Qb6 {[%clk 0:02:46]} 13. Rab1 {[%clk 0:02:35]}  Bf8 {[%clk 0:02:45]} 14. Rfe1 {[%clk 0:02:30]}  g6 {[%clk 0:02:45]} 15. Na4 {[%clk 0:02:20]}  Nxa4 {[%clk 0:02:35]} 16. bxa4 {[%clk 0:02:21]}  Qd8 {[%clk 0:02:25]} 17. Rbd1 {[%clk 0:02:14]}  Nd7 {[%clk 0:02:16]} 18. Nb3 {[%clk 0:02:14]}  Qe7 {[%clk 0:02:04]} 19. Qc3 {[%clk 0:01:58]}  Qe5 {[%clk 0:02:02]} 20. Qd2 {[%clk 0:01:58]}  Qh5 {[%clk 0:01:54]} 21. f4 {[%clk 0:01:52]}  Qh6 {[%clk 0:01:14]} 22. g4 {[%clk 0:01:44]}  f6 {[%clk 0:01:08]} 23. Qf2 {[%clk 0:01:40]}  Be7 {[%clk 0:01:04]} 24. h4 {[%clk 0:01:40]}  Qf8 {[%clk 0:00:41]} 25. g5 {[%clk 0:01:34]}  Qf7 {[%clk 0:00:39]} 26. Ba3 {[%clk 0:01:16]}  fxg5 {[%clk 0:00:27]} 27. hxg5 {[%clk 0:01:15]}  Rf8 {[%clk 0:00:27]} 28. Rf1 {[%clk 0:01:10]}  Qxc4 {[%clk 0:00:21]} 29. Bxd6 {[%clk 0:01:10]}  Bxd6 {[%clk 0:00:20]} 30. Rxd6 {[%clk 0:01:11]}  Ne5 {[%clk 0:00:17]} 31. Qd4 {[%clk 0:00:53]}  Qxd4+ {[%clk 0:00:16]} 32. Nxd4 {[%clk 0:00:54]}  Nc4 {[%clk 0:00:16]} 33. Rf6 {[%clk 0:00:54]}  Rd8 {[%clk 0:00:12]} 34. Nb3 {[%clk 0:00:44]}  Bg4 {[%clk 0:00:06]} 35. f5 {[%clk 0:00:35]}  Ne3 {[%clk 0:00:06]} 36. Rf4 {[%clk 0:00:35]}  Bh5 {[%clk 0:00:04]} 37. Bf3 {[%clk 0:00:32]}  Bxf3 {[%clk 0:00:03]} 38. Rxf3 {[%clk 0:00:33]}  Ng4 {[%clk 0:00:04]} 39. Re6 {[%clk 0:00:32]}  Re8 {[%clk 0:00:04]} 40. Nc5 {[%clk 0:00:31]}  b6 {[%clk 0:00:04]} 41. Nd7 {[%clk 0:00:29]}  Rxe6 {[%clk 0:00:03]} 42. fxe6 {[%clk 0:00:30]}  Re8 {[%clk 0:00:03]} 43. Rf4 {[%clk 0:00:24]}  h5 {[%clk 0:00:01]} 44. gxh6 {[%clk 0:00:23]}  Rxe6 {[%clk 0:00:01]} 45. Rxg4 {[%clk 0:00:24]}  Kh7 {[%clk 0:00:02]} 46. Nf8+ {[%clk 0:00:24]} 1-0


[Site "https://www.chess.com"]

[Event "Titled Tuesday Blitz June 21 Early 2022"]
[White "Kucuksari, Kaan"]
[Black "Ferreira, Vitor Hugo Vieira"]
[WhiteFideId "6380166"]
[BlackFideId "2119765"]
[WhiteElo "2305"]
[BlackElo "2165"]
[Result "0-1"]
[Round "11"]
[TimeControl "180+1"]
[Date "2022.06.22"]
[WhiteClock "0:00:56"]
[BlackClock "0:00:38"]

1. d4 {[%clk 0:03:00]}  d5 {[%clk 0:02:59]} 2. Nf3 {[%clk 0:02:58]}  Nf6 {[%clk 0:02:59]} 3. c4 {[%clk 0:02:59]}  c6 {[%clk 0:02:59]} 4. Qc2 {[%clk 0:02:57]}  dxc4 {[%clk 0:02:58]} 5. Qxc4 {[%clk 0:02:57]}  Bf5 {[%clk 0:02:57]} 6. g3 {[%clk 0:02:57]}  e6 {[%clk 0:02:58]} 7. Bg2 {[%clk 0:02:56]}  h6 {[%clk 0:02:58]} 8. O-O {[%clk 0:02:56]}  Nbd7 {[%clk 0:02:59]} 9. e3 {[%clk 0:02:49]}  Be7 {[%clk 0:02:58]} 10. Rd1 {[%clk 0:02:49]}  O-O {[%clk 0:02:57]} 11. Nc3 {[%clk 0:02:50]}  Ne4 {[%clk 0:02:55]} 12. Bd2 {[%clk 0:02:46]}  Nxd2 {[%clk 0:02:55]} 13. Rxd2 {[%clk 0:02:44]}  Nf6 {[%clk 0:02:51]} 14. Ne5 {[%clk 0:02:42]}  Bh7 {[%clk 0:02:48]} 15. Qb3 {[%clk 0:02:30]}  Qb6 {[%clk 0:02:48]} 16. Qxb6 {[%clk 0:02:22]}  axb6 {[%clk 0:02:47]} 17. a3 {[%clk 0:02:22]}  b5 {[%clk 0:02:47]} 18. Rc1 {[%clk 0:02:17]}  b4 {[%clk 0:02:46]} 19. axb4 {[%clk 0:02:15]}  Bxb4 {[%clk 0:02:47]} 20. Nd3 {[%clk 0:02:13]}  Be7 {[%clk 0:02:34]} 21. Nc5 {[%clk 0:02:11]}  Ra7 {[%clk 0:02:27]} 22. b4 {[%clk 0:02:07]}  Nd5 {[%clk 0:02:24]} 23. b5 {[%clk 0:01:57]}  Nxc3 {[%clk 0:02:14]} 24. bxc6 {[%clk 0:01:55]}  Nd5 {[%clk 0:01:55]} 25. Nd7 {[%clk 0:01:40]}  Rc8 {[%clk 0:01:46]} 26. Bxd5 {[%clk 0:01:38]}  exd5 {[%clk 0:01:43]} 27. c7 {[%clk 0:01:35]}  Bd6 {[%clk 0:01:24]} 28. Rdd1 {[%clk 0:01:28]}  Rxc7 {[%clk 0:01:23]} 29. Rxc7 {[%clk 0:01:28]}  Bxc7 {[%clk 0:01:24]} 30. Rc1 {[%clk 0:01:28]}  b6 {[%clk 0:01:16]} 31. Rc6 {[%clk 0:01:27]}  Be4 {[%clk 0:01:11]} 32. f3 {[%clk 0:01:17]}  Bxf3 {[%clk 0:01:10]} 33. Kf2 {[%clk 0:01:18]}  Bg4 {[%clk 0:01:08]} 34. Nxb6 {[%clk 0:01:16]}  Ra2+ {[%clk 0:01:08]} 35. Kg1 {[%clk 0:01:16]}  Bxb6 {[%clk 0:01:03]} 36. Rxb6 {[%clk 0:01:17]}  Bf3 {[%clk 0:01:04]} 37. h3 {[%clk 0:01:12]}  Rg2+ {[%clk 0:01:03]} 38. Kf1 {[%clk 0:01:12]}  Rxg3 {[%clk 0:01:04]} 39. Kf2 {[%clk 0:01:12]}  Rxh3 {[%clk 0:01:04]} 40. Rb8+ {[%clk 0:01:12]}  Kh7 {[%clk 0:01:04]} 41. Rb7 {[%clk 0:01:12]}  Kg6 {[%clk 0:01:05]} 42. Rb6+ {[%clk 0:01:08]}  f6 {[%clk 0:01:06]} 43. Rc6 {[%clk 0:01:08]}  Be4 {[%clk 0:01:04]} 44. Rc1 {[%clk 0:01:08]}  Rh2+ {[%clk 0:01:04]} 45. Kg3 {[%clk 0:01:07]}  Re2 {[%clk 0:01:04]} 46. Kf4 {[%clk 0:01:08]}  Rf2+ {[%clk 0:01:04]} 47. Kg4 {[%clk 0:01:08]}  h5+ {[%clk 0:00:56]} 48. Kg3 {[%clk 0:01:07]}  Rf3+ {[%clk 0:00:56]} 49. Kh4 {[%clk 0:01:07]}  Rxe3 {[%clk 0:00:57]} 50. Rg1+ {[%clk 0:01:07]}  Kf7 {[%clk 0:00:50]} 51. Rc1 {[%clk 0:01:03]}  Bf5 {[%clk 0:00:45]} 52. Rc7+ {[%clk 0:01:01]}  Kg6 {[%clk 0:00:44]} 53. Rc3 {[%clk 0:00:56]}  Rh3+ {[%clk 0:00:38]} 0-1


[Site "https://www.chess.com"]

[Event "Titled Tuesday Blitz June 21 Early 2022"]
[White "Lazavik, Denis"]
[Black "Steinberg, Nitzan"]
[WhiteFideId "13515110"]
[BlackFideId "2801795"]
[WhiteElo "2437"]
[BlackElo "2471"]
[Result "1-0"]
[Round "11"]
[TimeControl "180+1"]
[Date "2022.06.21"]
[WhiteClock "0:00:54"]
[BlackClock "0:00:46"]

1. d4 {[%clk 0:03:00]}  d5 {[%clk 0:02:59]} 2. c4 {[%clk 0:03:01]}  c6 {[%clk 0:03:00]} 3. Nf3 {[%clk 0:03:01]}  Nf6 {[%clk 0:03:00]} 4. Nc3 {[%clk 0:03:02]}  e6 {[%clk 0:03:01]} 5. Bg5 {[%clk 0:03:01]}  Nbd7 {[%clk 0:03:01]} 6. cxd5 {[%clk 0:03:01]}  exd5 {[%clk 0:03:01]} 7. e3 {[%clk 0:03:02]}  Qa5 {[%clk 0:03:01]} 8. Nd2 {[%clk 0:02:58]}  Ne4 {[%clk 0:03:01]} 9. Ndxe4 {[%clk 0:02:57]}  dxe4 {[%clk 0:03:02]} 10. Bf4 {[%clk 0:02:57]}  Nf6 {[%clk 0:03:00]} 11. Be2 {[%clk 0:02:55]}  Nd5 {[%clk 0:02:57]} 12. O-O {[%clk 0:02:44]}  Nxf4 {[%clk 0:02:56]} 13. exf4 {[%clk 0:02:45]}  Bd6 {[%clk 0:02:48]} 14. Nxe4 {[%clk 0:02:25]}  Bxf4 {[%clk 0:02:47]} 15. Bc4 {[%clk 0:02:23]}  O-O {[%clk 0:02:41]} 16. Qf3 {[%clk 0:02:23]}  Qf5 {[%clk 0:02:17]} 17. Rfe1 {[%clk 0:02:20]}  Bc7 {[%clk 0:02:01]} 18. Qb3 {[%clk 0:02:09]}  Qh5 {[%clk 0:01:49]} 19. Ng3 {[%clk 0:02:07]}  Qg6 {[%clk 0:01:33]} 20. d5 {[%clk 0:01:59]}  cxd5 {[%clk 0:01:24]} 21. Bxd5 {[%clk 0:02:00]}  Bb6 {[%clk 0:01:25]} 22. a4 {[%clk 0:01:18]}  Rb8 {[%clk 0:01:13]} 23. a5 {[%clk 0:01:16]}  Bc5 {[%clk 0:01:13]} 24. Rac1 {[%clk 0:01:15]}  b6 {[%clk 0:01:12]} 25. Rxc5 {[%clk 0:01:11]}  Be6 {[%clk 0:00:58]} 26. Rb5 {[%clk 0:01:00]}  Bd7 {[%clk 0:00:52]} 27. Rb4 {[%clk 0:01:00]}  Qd6 {[%clk 0:00:51]} 28. Rd4 {[%clk 0:00:59]}  bxa5 {[%clk 0:00:49]} 29. Bxf7+ {[%clk 0:00:55]}  Rxf7 {[%clk 0:00:46]} 30. Qxf7+ {[%clk 0:00:54]} 1-0


[Site "https://www.chess.com"]

[Event "Titled Tuesday Blitz June 21 Early 2022"]
[White "Mangialardo, Tiago Carvalho"]
[Black "Legenia, Artem"]
[WhiteFideId "2130718"]
[BlackFideId "14136945"]
[WhiteElo "2100"]
[BlackElo "1936"]
[Result "0-1"]
[Round "11"]
[TimeControl "180+1"]
[Date "2022.06.22"]
[WhiteClock "0:00:30"]
[BlackClock "0:01:58"]

1. e4 {[%clk 0:03:00]}  e5 {[%clk 0:02:52]} 2. Nf3 {[%clk 0:03:00]}  d6 {[%clk 0:02:52]} 3. c3 {[%clk 0:02:56]}  Nd7 {[%clk 0:02:51]} 4. d4 {[%clk 0:02:56]}  Ngf6 {[%clk 0:02:52]} 5. Bd3 {[%clk 0:02:55]}  Be7 {[%clk 0:02:52]} 6. O-O {[%clk 0:02:54]}  O-O {[%clk 0:02:52]} 7. Be3 {[%clk 0:02:54]}  c6 {[%clk 0:02:51]} 8. Nbd2 {[%clk 0:02:54]}  Ng4 {[%clk 0:02:50]} 9. Re1 {[%clk 0:02:53]}  b5 {[%clk 0:02:44]} 10. Nf1 {[%clk 0:02:51]}  Nxe3 {[%clk 0:02:44]} 11. Nxe3 {[%clk 0:02:51]}  Re8 {[%clk 0:02:45]} 12. a4 {[%clk 0:02:47]}  Qb6 {[%clk 0:02:38]} 13. Qb3 {[%clk 0:02:42]}  bxa4 {[%clk 0:02:32]} 14. Qxa4 {[%clk 0:02:39]}  Bb7 {[%clk 0:02:30]} 15. Nf5 {[%clk 0:02:14]}  Bf8 {[%clk 0:02:29]} 16. Ra3 {[%clk 0:01:58]}  Qc7 {[%clk 0:02:24]} 17. Rb3 {[%clk 0:01:47]}  g6 {[%clk 0:02:22]} 18. Ne3 {[%clk 0:01:44]}  Nb6 {[%clk 0:02:22]} 19. Qa2 {[%clk 0:01:39]}  exd4 {[%clk 0:02:22]} 20. cxd4 {[%clk 0:01:19]}  c5 {[%clk 0:02:23]} 21. Rc1 {[%clk 0:01:17]}  Bxe4 {[%clk 0:02:21]} 22. Bxe4 {[%clk 0:01:16]}  Rxe4 {[%clk 0:02:21]} 23. Rbc3 {[%clk 0:00:41]}  Qe7 {[%clk 0:02:11]} 24. dxc5 {[%clk 0:00:39]}  dxc5 {[%clk 0:02:09]} 25. Rxc5 {[%clk 0:00:34]}  Rxe3 {[%clk 0:02:01]} 26. fxe3 {[%clk 0:00:31]}  Qxe3+ {[%clk 0:01:59]} 27. Kf1 {[%clk 0:00:30]}  Bxc5 {[%clk 0:02:00]} 28. Rc3 {[%clk 0:00:30]}  Qf2# {[%clk 0:01:58]} 0-1


[Site "https://www.chess.com"]

[Event "Titled Tuesday Blitz June 21 Early 2022"]
[White "Marn, Jan"]
[Black "Rodchenkov, Sergey D."]
[WhiteFideId "14619245"]
[BlackFideId "4168712"]
[WhiteElo "2105"]
[BlackElo "2293"]
[Result "0-1"]
[Round "11"]
[TimeControl "180+1"]
[Date "2022.06.22"]
[WhiteClock "0:01:14"]
[BlackClock "0:02:24"]

1. d4 {[%clk 0:03:00]}  Nf6 {[%clk 0:02:57]} 2. c4 {[%clk 0:02:49]}  e6 {[%clk 0:02:57]} 3. g3 {[%clk 0:02:49]}  c5 {[%clk 0:02:55]} 4. d5 {[%clk 0:02:40]}  exd5 {[%clk 0:02:56]} 5. cxd5 {[%clk 0:02:40]}  d6 {[%clk 0:02:57]} 6. Bg2 {[%clk 0:02:39]}  g6 {[%clk 0:02:57]} 7. Nc3 {[%clk 0:02:39]}  Bg7 {[%clk 0:02:58]} 8. e4 {[%clk 0:02:40]}  O-O {[%clk 0:02:58]} 9. Nge2 {[%clk 0:02:39]}  a6 {[%clk 0:02:57]} 10. a4 {[%clk 0:02:39]}  Bg4 {[%clk 0:02:51]} 11. h3 {[%clk 0:02:37]}  Bxe2 {[%clk 0:02:51]} 12. Qxe2 {[%clk 0:02:37]}  Nbd7 {[%clk 0:02:52]} 13. O-O {[%clk 0:02:38]}  Re8 {[%clk 0:02:52]} 14. Be3 {[%clk 0:02:33]}  Qc7 {[%clk 0:02:51]} 15. Rfe1 {[%clk 0:02:23]}  b6 {[%clk 0:02:49]} 16. f4 {[%clk 0:02:22]}  Reb8 {[%clk 0:02:42]} 17. Bf2 {[%clk 0:02:10]}  Ne8 {[%clk 0:02:39]} 18. Rad1 {[%clk 0:01:56]}  b5 {[%clk 0:02:33]} 19. axb5 {[%clk 0:01:56]}  axb5 {[%clk 0:02:33]} 20. Nxb5 {[%clk 0:01:56]}  Qb6 {[%clk 0:02:33]} 21. Bf1 {[%clk 0:01:50]}  Ra2 {[%clk 0:02:28]} 22. Rb1 {[%clk 0:01:46]}  Nc7 {[%clk 0:02:26]} 23. Nxc7 {[%clk 0:01:46]}  Qxc7 {[%clk 0:02:27]} 24. Qa6 {[%clk 0:01:14]}  Rxa6 {[%clk 0:02:24]} 0-1


[Site "https://www.chess.com"]

[Event "Titled Tuesday Blitz June 21 Early 2022"]
[White "Martin Carmona, Gaston Manuel"]
[Black "Martin, Lewis"]
[WhiteFideId "22284567"]
[BlackFideId "410551"]
[WhiteElo "2162"]
[BlackElo "2145"]
[Result "1-0"]
[Round "11"]
[TimeControl "180+1"]
[Date "2022.06.22"]
[WhiteClock "0:01:18"]
[BlackClock "0:00:07"]

1. d4 {[%clk 0:03:00]}  d5 {[%clk 0:02:59]} 2. c4 {[%clk 0:02:55]}  c6 {[%clk 0:02:59]} 3. Nc3 {[%clk 0:02:54]}  dxc4 {[%clk 0:02:58]} 4. a4 {[%clk 0:02:52]}  Nf6 {[%clk 0:02:57]} 5. Nf3 {[%clk 0:02:52]}  Bf5 {[%clk 0:02:56]} 6. Ne5 {[%clk 0:02:51]}  Nbd7 {[%clk 0:02:55]} 7. Nxc4 {[%clk 0:02:52]}  Nb6 {[%clk 0:02:55]} 8. Ne5 {[%clk 0:02:52]}  e6 {[%clk 0:02:50]} 9. f3 {[%clk 0:02:51]}  Bb4 {[%clk 0:02:47]} 10. e4 {[%clk 0:02:51]}  Bxe4 {[%clk 0:02:26]} 11. fxe4 {[%clk 0:02:52]}  Nxe4 {[%clk 0:02:26]} 12. Qd3 {[%clk 0:02:46]}  f5 {[%clk 0:02:19]} 13. Bd2 {[%clk 0:02:39]}  Nxd2 {[%clk 0:02:16]} 14. Qxd2 {[%clk 0:02:39]}  Qh4+ {[%clk 0:02:02]} 15. g3 {[%clk 0:02:35]}  Qf6 {[%clk 0:01:43]} 16. a5 {[%clk 0:02:30]}  Nd5 {[%clk 0:01:40]} 17. a6 {[%clk 0:02:31]}  bxa6 {[%clk 0:01:33]} 18. Nxc6 {[%clk 0:02:24]}  O-O {[%clk 0:01:32]} 19. Bg2 {[%clk 0:02:15]}  Nxc3 {[%clk 0:00:54]} 20. bxc3 {[%clk 0:02:03]}  Bd6 {[%clk 0:00:53]} 21. O-O {[%clk 0:02:02]}  Rac8 {[%clk 0:00:48]} 22. Rxa6 {[%clk 0:02:02]}  Rc7 {[%clk 0:00:46]} 23. Rxa7 {[%clk 0:02:01]}  Rxa7 {[%clk 0:00:45]} 24. Nxa7 {[%clk 0:02:02]}  h5 {[%clk 0:00:23]} 25. Nb5 {[%clk 0:02:01]}  Bb8 {[%clk 0:00:22]} 26. d5 {[%clk 0:02:01]}  h4 {[%clk 0:00:19]} 27. d6 {[%clk 0:01:59]}  hxg3 {[%clk 0:00:19]} 28. hxg3 {[%clk 0:02:00]}  Rd8 {[%clk 0:00:19]} 29. c4 {[%clk 0:01:58]}  Qe5 {[%clk 0:00:18]} 30. Qf4 {[%clk 0:01:49]}  Qc5+ {[%clk 0:00:17]} 31. Kh1 {[%clk 0:01:48]}  Bxd6 {[%clk 0:00:17]} 32. Nxd6 {[%clk 0:01:47]}  Rxd6 {[%clk 0:00:17]} 33. Re1 {[%clk 0:01:45]}  e5 {[%clk 0:00:16]} 34. Qxe5 {[%clk 0:01:37]}  Rh6+ {[%clk 0:00:15]} 35. Bh3 {[%clk 0:01:29]}  Rxh3+ {[%clk 0:00:15]} 36. Kg2 {[%clk 0:01:30]}  Qxe5 {[%clk 0:00:11]} 37. Rxe5 {[%clk 0:01:31]}  Rh6 {[%clk 0:00:11]} 38. Rxf5 {[%clk 0:01:31]}  Rc6 {[%clk 0:00:12]} 39. Rf4 {[%clk 0:01:28]}  g5 {[%clk 0:00:11]} 40. Rg4 {[%clk 0:01:25]}  Kh7 {[%clk 0:00:11]} 41. Kf3 {[%clk 0:01:23]}  Kg6 {[%clk 0:00:11]} 42. Ke3 {[%clk 0:01:23]}  Kf5 {[%clk 0:00:11]} 43. Rd4 {[%clk 0:01:23]}  Rc5 {[%clk 0:00:08]} 44. Rd5+ {[%clk 0:01:16]}  Rxd5 {[%clk 0:00:08]} 45. cxd5 {[%clk 0:01:17]}  Ke5 {[%clk 0:00:08]} 46. Kf3 {[%clk 0:01:17]}  Kxd5 {[%clk 0:00:07]} 47. Kg4 {[%clk 0:01:18]}  Ke4 {[%clk 0:00:06]} 48. Kxg5 {[%clk 0:01:18]}  Kf3 {[%clk 0:00:07]} 49. g4 {[%clk 0:01:18]} 1-0


[Site "https://www.chess.com"]